Workbook

Sheet Лист1

Sheet Prostamol МРК 10 2017 10.17
D1: График размещения
A3: Договор: | B3: Berlin-Chemie 2017 ТК
A4: Название Заказа / Медиаплана: | B4: Prostamol МРК 10/2017 / Prostamol МРК 10/2017
A5: Канал: | B5: Мужской рекламный канал
B6: Дом Кино, Discovery Channel, Музыка Первого, Русский Иллюзион, Animal Planet, Бридж ТВ, Eurosport, Eurosport 2, TV 1000, TV 1000 Русское кино, TV 1000 Action, Viasat Explore, Viasat History, Матч!Арена, Русский экстрим, Наш футбол, Матч! Боец, КХЛ, Бридж ТВ Русский хит, Матч! Футбол 1, Матч! Футбол 3, Матч! Игра, Матч! Наш спорт, Матч! Футбол 2, АвтоПлюс, Кинокомедия, Мужское кино, Наше новое кино, Europa Plus TV, Киномикс, Киносерия, Родное кино, Царьград
A7: Целевая аудитория: | B7: м 18-45
A8: Дата выгрузки: | B8: 27.09.2017
A10: Программа/номер блока1) | B10: Время выхода2) | C10: Цена за GRP 30” (без НДС)3) | D10: 1 | E10: 2 | F10: 3 | G10: 4 | H10: 5 | I10: 6 | J10: 7 | K10: 8 | L10: 9 | M10: 10 | N10: 11 | O10: 12 | P10: 13 | Q10: 14 | R10: 15 | S10: 16 | T10: 17 | U10: 18 | V10: 19 | W10: 20 | X10: 21 | Y10: 22 | Z10: 23 | AA10: 24 | AB10: 25 | AC10: 26 | AD10: 27 | AE10: 28 | AF10: 29 | AG10: 30 | AH10: 31 | AI10: Всего (хронометраж/кол-во пунктов рейтингов) | AJ10: Стоимость (без НДС) | AK10: Хр.
A11: Вещание канала 09:00 - 10:00 (1) | B11: 09:00 | C11: 76377.20539 | G11: 20 | AI11: =SUM(D11:AH11) -> 20 | AK11: 20 | AL11: =AI11 -> 20 | AO11: -0.8
B12: 09:33 | AI12: =IF(ISERROR(AVERAGE(D12:AH12)), "", SUM(D12:AH12)) ->  | AM12: =AI12 -> 
G13: 0.247 | AI13: =SUMPRODUCT(D11:AH11, D13:AH13)/30 -> 0.1646666667 | AN13: =AI13 -> 0.1646666667
A14: Вещание канала 09:00 - 10:00 (1) | B14: 09:00 | C14: 76377.20539 | O14: 15 | AI14: =SUM(D14:AH14) -> 15 | AK14: 15 | AL14: =AI14 -> 15 | AO14: -0.8
B15: 09:24 | AI15: =IF(ISERROR(AVERAGE(D15:AH15)), "", SUM(D15:AH15)) ->  | AM15: =AI15 -> 
O16: 0.238 | AI16: =SUMPRODUCT(D14:AH14, D16:AH16)/30 -> 0.119 | AN16: =AI16 -> 0.119
A17: Вещание канала 09:00 - 10:00 (1) | B17: 09:00 | C17: 76377.20539 | V17: 20 | AI17: =SUM(D17:AH17) -> 20 | AK17: 20 | AL17: =AI17 -> 20 | AO17: -0.8
B18: 09:43 | AI18: =IF(ISERROR(AVERAGE(D18:AH18)), "", SUM(D18:AH18)) ->  | AM18: =AI18 -> 
V19: 0.282 | AI19: =SUMPRODUCT(D17:AH17, D19:AH19)/30 -> 0.188 | AN19: =AI19 -> 0.188
A20: Вещание канала 09:00 - 10:00 (1) | B20: 09:00 | C20: 76377.20539 | Z20: 15 | AI20: =SUM(D20:AH20) -> 15 | AK20: 15 | AL20: =AI20 -> 15 | AO20: -0.8
B21: 09:23 | AI21: =IF(ISERROR(AVERAGE(D21:AH21)), "", SUM(D21:AH21)) ->  | AM21: =AI21 -> 
Z22: 0.375 | AI22: =SUMPRODUCT(D20:AH20, D22:AH22)/30 -> 0.1875 | AN22: =AI22 -> 0.1875
A23: Вещание канала 09:00 - 10:00 (2) | B23: 09:00 | C23: 76377.20539 | AH23: 15 | AI23: =SUM(D23:AH23) -> 15 | AK23: 15 | AL23: =AI23 -> 15 | AO23: -0.8
B24: 09:36 | AI24: =IF(ISERROR(AVERAGE(D24:AH24)), "", SUM(D24:AH24)) ->  | AM24: =AI24 -> 
AH25: 0.29 | AI25: =SUMPRODUCT(D23:AH23, D25:AH25)/30 -> 0.145 | AN25: =AI25 -> 0.145
A26: Вещание канала 10:00 - 11:00 (1) | B26: 10:00 | C26: 76377.20539 | E26: 20 | AI26: =SUM(D26:AH26) -> 20 | AK26: 20 | AL26: =AI26 -> 20 | AO26: -0.8
B27: 10:33 | AI27: =IF(ISERROR(AVERAGE(D27:AH27)), "", SUM(D27:AH27)) ->  | AM27: =AI27 -> 
E28: 0.172 | AI28: =SUMPRODUCT(D26:AH26, D28:AH28)/30 -> 0.1146666667 | AN28: =AI28 -> 0.1146666667
A29: Вещание канала 10:00 - 11:00 (1) | B29: 10:00 | C29: 76377.20539 | L29: 20 | AI29: =SUM(D29:AH29) -> 20 | AK29: 20 | AL29: =AI29 -> 20 | AO29: -0.8
B30: 10:16 | AI30: =IF(ISERROR(AVERAGE(D30:AH30)), "", SUM(D30:AH30)) ->  | AM30: =AI30 -> 
L31: 0.371 | AI31: =SUMPRODUCT(D29:AH29, D31:AH31)/30 -> 0.2473333333 | AN31: =AI31 -> 0.2473333333
A32: Вещание канала 10:00 - 11:00 (2) | B32: 10:00 | C32: 76377.20539 | Q32: 15 | AI32: =SUM(D32:AH32) -> 15 | AK32: 15 | AL32: =AI32 -> 15 | AO32: -0.8
B33: 10:41 | AI33: =IF(ISERROR(AVERAGE(D33:AH33)), "", SUM(D33:AH33)) ->  | AM33: =AI33 -> 
Q34: 0.653 | AI34: =SUMPRODUCT(D32:AH32, D34:AH34)/30 -> 0.3265 | AN34: =AI34 -> 0.3265
A35: Вещание канала 10:00 - 11:00 (2) | B35: 10:00 | C35: 76377.20539 | S35: 15 | AI35: =SUM(D35:AH35) -> 15 | AK35: 15 | AL35: =AI35 -> 15 | AO35: -0.8
B36: 10:43 | AI36: =IF(ISERROR(AVERAGE(D36:AH36)), "", SUM(D36:AH36)) ->  | AM36: =AI36 -> 
S37: 0.335 | AI37: =SUMPRODUCT(D35:AH35, D37:AH37)/30 -> 0.1675 | AN37: =AI37 -> 0.1675
A38: Вещание канала 10:00 - 11:00 (1) | B38: 10:00 | C38: 76377.20539 | U38: 15 | AI38: =SUM(D38:AH38) -> 15 | AK38: 15 | AL38: =AI38 -> 15 | AO38: -0.8
B39: 10:51 | AI39: =IF(ISERROR(AVERAGE(D39:AH39)), "", SUM(D39:AH39)) ->  | AM39: =AI39 -> 
U40: 0.32 | AI40: =SUMPRODUCT(D38:AH38, D40:AH40)/30 -> 0.16 | AN40: =AI40 -> 0.16
A41: Вещание канала 10:00 - 11:00 (2) | B41: 10:00 | C41: 76377.20539 | AC41: 15 | AI41: =SUM(D41:AH41) -> 15 | AK41: 15 | AL41: =AI41 -> 15 | AO41: -0.8
B42: 10:37 | AI42: =IF(ISERROR(AVERAGE(D42:AH42)), "", SUM(D42:AH42)) ->  | AM42: =AI42 -> 
AC43: 0.253 | AI43: =SUMPRODUCT(D41:AH41, D43:AH43)/30 -> 0.1265 | AN43: =AI43 -> 0.1265
A44: Вещание канала 10:00 - 11:00 (2) | B44: 10:00 | C44: 76377.20539 | AG44: 15 | AI44: =SUM(D44:AH44) -> 15 | AK44: 15 | AL44: =AI44 -> 15 | AO44: -0.8
B45: 10:37 | AI45: =IF(ISERROR(AVERAGE(D45:AH45)), "", SUM(D45:AH45)) ->  | AM45: =AI45 -> 
AG46: 0.497 | AI46: =SUMPRODUCT(D44:AH44, D46:AH46)/30 -> 0.2485 | AN46: =AI46 -> 0.2485
A47: Вещание канала 11:00 - 12:00 (2) | B47: 11:00 | C47: 76377.20539 | E47: 15 | AI47: =SUM(D47:AH47) -> 15 | AK47: 15 | AL47: =AI47 -> 15 | AO47: -0.8
B48: 11:46 | AI48: =IF(ISERROR(AVERAGE(D48:AH48)), "", SUM(D48:AH48)) ->  | AM48: =AI48 -> 
E49: 0.454 | AI49: =SUMPRODUCT(D47:AH47, D49:AH49)/30 -> 0.227 | AN49: =AI49 -> 0.227
A50: Вещание канала 12:00 - 13:00 (2) | B50: 12:00 | C50: 76377.20539 | G50: 15 | AI50: =SUM(D50:AH50) -> 15 | AK50: 15 | AL50: =AI50 -> 15 | AO50: -0.8
B51: 12:48 | AI51: =IF(ISERROR(AVERAGE(D51:AH51)), "", SUM(D51:AH51)) ->  | AM51: =AI51 -> 
G52: 0.221 | AI52: =SUMPRODUCT(D50:AH50, D52:AH52)/30 -> 0.1105 | AN52: =AI52 -> 0.1105
A53: Вещание канала 12:00 - 13:00 (1) | B53: 12:00 | C53: 76377.20539 | H53: 15 | AI53: =SUM(D53:AH53) -> 15 | AK53: 15 | AL53: =AI53 -> 15 | AO53: -0.8
B54: 12:29 | AI54: =IF(ISERROR(AVERAGE(D54:AH54)), "", SUM(D54:AH54)) ->  | AM54: =AI54 -> 
H55: 0.292 | AI55: =SUMPRODUCT(D53:AH53, D55:AH55)/30 -> 0.146 | AN55: =AI55 -> 0.146
A56: Вещание канала 12:00 - 13:00 (2) | B56: 12:00 | C56: 76377.20539 | K56: 15 | AI56: =SUM(D56:AH56) -> 15 | AK56: 15 | AL56: =AI56 -> 15 | AO56: -0.8
B57: 12:26 | AI57: =IF(ISERROR(AVERAGE(D57:AH57)), "", SUM(D57:AH57)) ->  | AM57: =AI57 -> 
K58: 0.417 | AI58: =SUMPRODUCT(D56:AH56, D58:AH58)/30 -> 0.2085 | AN58: =AI58 -> 0.2085
A59: Вещание канала 12:00 - 13:00 (1) | B59: 12:00 | C59: 76377.20539 | M59: 15 | AI59: =SUM(D59:AH59) -> 15 | AK59: 15 | AL59: =AI59 -> 15 | AO59: -0.8
B60: 12:12 | AI60: =IF(ISERROR(AVERAGE(D60:AH60)), "", SUM(D60:AH60)) ->  | AM60: =AI60 -> 
M61: 0.468 | AI61: =SUMPRODUCT(D59:AH59, D61:AH61)/30 -> 0.234 | AN61: =AI61 -> 0.234
A62: Вещание канала 12:00 - 13:00 (1) | B62: 12:00 | C62: 76377.20539 | R62: 15 | AI62: =SUM(D62:AH62) -> 15 | AK62: 15 | AL62: =AI62 -> 15 | AO62: -0.8
B63: 12:17 | AI63: =IF(ISERROR(AVERAGE(D63:AH63)), "", SUM(D63:AH63)) ->  | AM63: =AI63 -> 
R64: 0.654 | AI64: =SUMPRODUCT(D62:AH62, D64:AH64)/30 -> 0.327 | AN64: =AI64 -> 0.327
A65: Вещание канала 12:00 - 13:00 (3) | B65: 12:00 | C65: 76377.20539 | W65: 15 | AI65: =SUM(D65:AH65) -> 15 | AK65: 15 | AL65: =AI65 -> 15 | AO65: -0.8
B66: 12:36 | AI66: =IF(ISERROR(AVERAGE(D66:AH66)), "", SUM(D66:AH66)) ->  | AM66: =AI66 -> 
W67: 0.283 | AI67: =SUMPRODUCT(D65:AH65, D67:AH67)/30 -> 0.1415 | AN67: =AI67 -> 0.1415
A68: Вещание канала 12:00 - 13:00 (1) | B68: 12:00 | C68: 76377.20539 | Y68: 15 | AI68: =SUM(D68:AH68) -> 15 | AK68: 15 | AL68: =AI68 -> 15 | AO68: -0.8
B69: 12:01 | AI69: =IF(ISERROR(AVERAGE(D69:AH69)), "", SUM(D69:AH69)) ->  | AM69: =AI69 -> 
Y70: 0.678 | AI70: =SUMPRODUCT(D68:AH68, D70:AH70)/30 -> 0.339 | AN70: =AI70 -> 0.339
A71: Вещание канала 12:00 - 13:00 (2) | B71: 12:00 | C71: 76377.20539 | AE71: 15 | AI71: =SUM(D71:AH71) -> 15 | AK71: 15 | AL71: =AI71 -> 15 | AO71: -0.8
B72: 12:58 | AI72: =IF(ISERROR(AVERAGE(D72:AH72)), "", SUM(D72:AH72)) ->  | AM72: =AI72 -> 
AE73: 0.255 | AI73: =SUMPRODUCT(D71:AH71, D73:AH73)/30 -> 0.1275 | AN73: =AI73 -> 0.1275
A74: Вещание канала 13:00 - 14:00 (1) | B74: 13:00 | C74: 76377.20539 | F74: 20 | AI74: =SUM(D74:AH74) -> 20 | AK74: 20 | AL74: =AI74 -> 20 | AO74: -0.8
B75: 13:18 | AI75: =IF(ISERROR(AVERAGE(D75:AH75)), "", SUM(D75:AH75)) ->  | AM75: =AI75 -> 
F76: 0.17 | AI76: =SUMPRODUCT(D74:AH74, D76:AH76)/30 -> 0.1133333333 | AN76: =AI76 -> 0.1133333333
A77: Вещание канала 13:00 - 14:00 (2) | B77: 13:00 | C77: 76377.20539 | I77: 15 | AI77: =SUM(D77:AH77) -> 15 | AK77: 15 | AL77: =AI77 -> 15 | AO77: -0.8
B78: 13:24 | AI78: =IF(ISERROR(AVERAGE(D78:AH78)), "", SUM(D78:AH78)) ->  | AM78: =AI78 -> 
I79: 0.336 | AI79: =SUMPRODUCT(D77:AH77, D79:AH79)/30 -> 0.168 | AN79: =AI79 -> 0.168
A80: Вещание канала 13:00 - 14:00 (2) | B80: 13:00 | C80: 76377.20539 | L80: 15 | AI80: =SUM(D80:AH80) -> 15 | AK80: 15 | AL80: =AI80 -> 15 | AO80: -0.8
B81: 13:56 | AI81: =IF(ISERROR(AVERAGE(D81:AH81)), "", SUM(D81:AH81)) ->  | AM81: =AI81 -> 
L82: 0.394 | AI82: =SUMPRODUCT(D80:AH80, D82:AH82)/30 -> 0.197 | AN82: =AI82 -> 0.197
A83: Вещание канала 13:00 - 14:00 (1) | B83: 13:00 | C83: 76377.20539 | P83: 20 | AI83: =SUM(D83:AH83) -> 20 | AK83: 20 | AL83: =AI83 -> 20 | AO83: -0.8
B84: 13:00 | AI84: =IF(ISERROR(AVERAGE(D84:AH84)), "", SUM(D84:AH84)) ->  | AM84: =AI84 -> 
P85: 0.371 | AI85: =SUMPRODUCT(D83:AH83, D85:AH85)/30 -> 0.2473333333 | AN85: =AI85 -> 0.2473333333
A86: Вещание канала 13:00 - 14:00 (1) | B86: 13:00 | C86: 76377.20539 | T86: 15 | AI86: =SUM(D86:AH86) -> 15 | AK86: 15 | AL86: =AI86 -> 15 | AO86: -0.8
B87: 13:04 | AI87: =IF(ISERROR(AVERAGE(D87:AH87)), "", SUM(D87:AH87)) ->  | AM87: =AI87 -> 
T88: 0.214 | AI88: =SUMPRODUCT(D86:AH86, D88:AH88)/30 -> 0.107 | AN88: =AI88 -> 0.107
A89: Вещание канала 13:00 - 14:00 (2) | B89: 13:00 | C89: 76377.20539 | V89: 15 | AI89: =SUM(D89:AH89) -> 15 | AK89: 15 | AL89: =AI89 -> 15 | AO89: -0.8
B90: 13:31 | AI90: =IF(ISERROR(AVERAGE(D90:AH90)), "", SUM(D90:AH90)) ->  | AM90: =AI90 -> 
V91: 0.354 | AI91: =SUMPRODUCT(D89:AH89, D91:AH91)/30 -> 0.177 | AN91: =AI91 -> 0.177
A92: Вещание канала 13:00 - 14:00 (1) | B92: 13:00 | C92: 76377.20539 | AA92: 15 | AI92: =SUM(D92:AH92) -> 15 | AK92: 15 | AL92: =AI92 -> 15 | AO92: -0.8
B93: 13:22 | AI93: =IF(ISERROR(AVERAGE(D93:AH93)), "", SUM(D93:AH93)) ->  | AM93: =AI93 -> 
AA94: 0.206 | AI94: =SUMPRODUCT(D92:AH92, D94:AH94)/30 -> 0.103 | AN94: =AI94 -> 0.103
A95: Вещание канала 13:00 - 14:00 (2) | B95: 13:00 | C95: 76377.20539 | AD95: 20 | AI95: =SUM(D95:AH95) -> 20 | AK95: 20 | AL95: =AI95 -> 20 | AO95: -0.8
B96: 13:36 | AI96: =IF(ISERROR(AVERAGE(D96:AH96)), "", SUM(D96:AH96)) ->  | AM96: =AI96 -> 
AD97: 0.206 | AI97: =SUMPRODUCT(D95:AH95, D97:AH97)/30 -> 0.1373333333 | AN97: =AI97 -> 0.1373333333
A98: Вещание канала 13:00 - 14:00 (1) | B98: 13:00 | C98: 76377.20539 | AF98: 20 | AI98: =SUM(D98:AH98) -> 20 | AK98: 20 | AL98: =AI98 -> 20 | AO98: -0.8
B99: 13:17 | AI99: =IF(ISERROR(AVERAGE(D99:AH99)), "", SUM(D99:AH99)) ->  | AM99: =AI99 -> 
AF100: 0.194 | AI100: =SUMPRODUCT(D98:AH98, D100:AH100)/30 -> 0.1293333333 | AN100: =AI100 -> 0.1293333333
A101: Вещание канала 14:00 - 15:00 (2) | B101: 14:00 | C101: 76377.20539 | F101: 15 | AI101: =SUM(D101:AH101) -> 15 | AK101: 15 | AL101: =AI101 -> 15 | AO101: -0.8
B102: 14:36 | AI102: =IF(ISERROR(AVERAGE(D102:AH102)), "", SUM(D102:AH102)) ->  | AM102: =AI102 -> 
F103: 0.337 | AI103: =SUMPRODUCT(D101:AH101, D103:AH103)/30 -> 0.1685 | AN103: =AI103 -> 0.1685
A104: Вещание канала 14:00 - 15:00 (1) | B104: 14:00 | C104: 76377.20539 | N104: 15 | AI104: =SUM(D104:AH104) -> 15 | AK104: 15 | AL104: =AI104 -> 15 | AO104: -0.8
B105: 14:47 | AI105: =IF(ISERROR(AVERAGE(D105:AH105)), "", SUM(D105:AH105)) ->  | AM105: =AI105 -> 
N106: 0.298 | AI106: =SUMPRODUCT(D104:AH104, D106:AH106)/30 -> 0.149 | AN106: =AI106 -> 0.149
A107: Вещание канала 14:00 - 15:00 (1) | B107: 14:00 | C107: 76377.20539 | AG107: 20 | AI107: =SUM(D107:AH107) -> 20 | AK107: 20 | AL107: =AI107 -> 20 | AO107: -0.8
B108: 14:28 | AI108: =IF(ISERROR(AVERAGE(D108:AH108)), "", SUM(D108:AH108)) ->  | AM108: =AI108 -> 
AG109: 0.428 | AI109: =SUMPRODUCT(D107:AH107, D109:AH109)/30 -> 0.2853333333 | AN109: =AI109 -> 0.2853333333
A110: Вещание канала 15:00 - 16:00 (2) | B110: 15:00 | C110: 76377.20539 | E110: 15 | AI110: =SUM(D110:AH110) -> 15 | AK110: 15 | AL110: =AI110 -> 15 | AO110: -0.8
B111: 15:01 | AI111: =IF(ISERROR(AVERAGE(D111:AH111)), "", SUM(D111:AH111)) ->  | AM111: =AI111 -> 
E112: 0.218 | AI112: =SUMPRODUCT(D110:AH110, D112:AH112)/30 -> 0.109 | AN112: =AI112 -> 0.109
A113: Вещание канала 15:00 - 16:00 (2) | B113: 15:00 | C113: 76377.20539 | J113: 15 | AI113: =SUM(D113:AH113) -> 15 | AK113: 15 | AL113: =AI113 -> 15 | AO113: -0.8
B114: 15:51 | AI114: =IF(ISERROR(AVERAGE(D114:AH114)), "", SUM(D114:AH114)) ->  | AM114: =AI114 -> 
J115: 0.387 | AI115: =SUMPRODUCT(D113:AH113, D115:AH115)/30 -> 0.1935 | AN115: =AI115 -> 0.1935
A116: Вещание канала 15:00 - 16:00 (2) | B116: 15:00 | C116: 76377.20539 | S116: 15 | AI116: =SUM(D116:AH116) -> 15 | AK116: 15 | AL116: =AI116 -> 15 | AO116: -0.8
B117: 15:02 | AI117: =IF(ISERROR(AVERAGE(D117:AH117)), "", SUM(D117:AH117)) ->  | AM117: =AI117 -> 
S118: 0.24 | AI118: =SUMPRODUCT(D116:AH116, D118:AH118)/30 -> 0.12 | AN118: =AI118 -> 0.12
A119: Вещание канала 15:00 - 16:00 (1) | B119: 15:00 | C119: 76377.20539 | AB119: 15 | AI119: =SUM(D119:AH119) -> 15 | AK119: 15 | AL119: =AI119 -> 15 | AO119: -0.8
B120: 15:23 | AI120: =IF(ISERROR(AVERAGE(D120:AH120)), "", SUM(D120:AH120)) ->  | AM120: =AI120 -> 
AB121: 0.382 | AI121: =SUMPRODUCT(D119:AH119, D121:AH121)/30 -> 0.191 | AN121: =AI121 -> 0.191
A122: Вещание канала 15:00 - 16:00 (1) | B122: 15:00 | C122: 76377.20539 | AH122: 15 | AI122: =SUM(D122:AH122) -> 15 | AK122: 15 | AL122: =AI122 -> 15 | AO122: -0.8
B123: 15:06 | AI123: =IF(ISERROR(AVERAGE(D123:AH123)), "", SUM(D123:AH123)) ->  | AM123: =AI123 -> 
AH124: 0.325 | AI124: =SUMPRODUCT(D122:AH122, D124:AH124)/30 -> 0.1625 | AN124: =AI124 -> 0.1625
A125: Вещание канала 16:00 - 17:00 (1) | B125: 16:00 | C125: 76377.20539 | H125: 15 | AI125: =SUM(D125:AH125) -> 15 | AK125: 15 | AL125: =AI125 -> 15 | AO125: -0.8
B126: 16:48 | AI126: =IF(ISERROR(AVERAGE(D126:AH126)), "", SUM(D126:AH126)) ->  | AM126: =AI126 -> 
H127: 0.498 | AI127: =SUMPRODUCT(D125:AH125, D127:AH127)/30 -> 0.249 | AN127: =AI127 -> 0.249
A128: Вещание канала 16:00 - 17:00 (1) | B128: 16:00 | C128: 76377.20539 | W128: 15 | AI128: =SUM(D128:AH128) -> 15 | AK128: 15 | AL128: =AI128 -> 15 | AO128: -0.8
B129: 16:25 | AI129: =IF(ISERROR(AVERAGE(D129:AH129)), "", SUM(D129:AH129)) ->  | AM129: =AI129 -> 
W130: 0.357 | AI130: =SUMPRODUCT(D128:AH128, D130:AH130)/30 -> 0.1785 | AN130: =AI130 -> 0.1785
A131: Вещание канала 16:00 - 17:00 (2) | B131: 16:00 | C131: 76377.20539 | AD131: 15 | AI131: =SUM(D131:AH131) -> 15 | AK131: 15 | AL131: =AI131 -> 15 | AO131: -0.8
B132: 16:46 | AI132: =IF(ISERROR(AVERAGE(D132:AH132)), "", SUM(D132:AH132)) ->  | AM132: =AI132 -> 
AD133: 0.232 | AI133: =SUMPRODUCT(D131:AH131, D133:AH133)/30 -> 0.116 | AN133: =AI133 -> 0.116
A134: Вещание канала 17:00 - 18:00 (1) | B134: 17:00 | C134: 76377.20539 | M134: 15 | AI134: =SUM(D134:AH134) -> 15 | AK134: 15 | AL134: =AI134 -> 15 | AO134: -0.8
B135: 17:23 | AI135: =IF(ISERROR(AVERAGE(D135:AH135)), "", SUM(D135:AH135)) ->  | AM135: =AI135 -> 
M136: 0.508 | AI136: =SUMPRODUCT(D134:AH134, D136:AH136)/30 -> 0.254 | AN136: =AI136 -> 0.254
A137: Вещание канала 17:00 - 18:00 (1) | B137: 17:00 | C137: 76377.20539 | U137: 20 | AI137: =SUM(D137:AH137) -> 20 | AK137: 20 | AL137: =AI137 -> 20 | AO137: -0.8
B138: 17:44 | AI138: =IF(ISERROR(AVERAGE(D138:AH138)), "", SUM(D138:AH138)) ->  | AM138: =AI138 -> 
U139: 0.668 | AI139: =SUMPRODUCT(D137:AH137, D139:AH139)/30 -> 0.4453333333 | AN139: =AI139 -> 0.4453333333
A140: Вещание канала 17:00 - 18:00 (1) | B140: 17:00 | C140: 76377.20539 | Z140: 20 | AI140: =SUM(D140:AH140) -> 20 | AK140: 20 | AL140: =AI140 -> 20 | AO140: -0.8
B141: 17:01 | AI141: =IF(ISERROR(AVERAGE(D141:AH141)), "", SUM(D141:AH141)) ->  | AM141: =AI141 -> 
Z142: 0.382 | AI142: =SUMPRODUCT(D140:AH140, D142:AH142)/30 -> 0.2546666667 | AN142: =AI142 -> 0.2546666667
A143: Вещание канала 17:00 - 18:00 (2) | B143: 17:00 | C143: 76377.20539 | AC143: 20 | AI143: =SUM(D143:AH143) -> 20 | AK143: 20 | AL143: =AI143 -> 20 | AO143: -0.8
B144: 17:59 | AI144: =IF(ISERROR(AVERAGE(D144:AH144)), "", SUM(D144:AH144)) ->  | AM144: =AI144 -> 
AC145: 0.51 | AI145: =SUMPRODUCT(D143:AH143, D145:AH145)/30 -> 0.34 | AN145: =AI145 -> 0.34
A146: Вещание канала 18:00 - 19:00 (1) | B146: 18:00 | C146: 76377.20539 | G146: 15 | AI146: =SUM(D146:AH146) -> 15 | AK146: 15 | AL146: =AI146 -> 15 | AO146: -0.8
B147: 18:00 | AI147: =IF(ISERROR(AVERAGE(D147:AH147)), "", SUM(D147:AH147)) ->  | AM147: =AI147 -> 
G148: 0.424 | AI148: =SUMPRODUCT(D146:AH146, D148:AH148)/30 -> 0.212 | AN148: =AI148 -> 0.212
A149: Вещание канала 18:00 - 19:00 (2) | B149: 18:00 | C149: 76377.20539 | J149: 20 | AI149: =SUM(D149:AH149) -> 20 | AK149: 20 | AL149: =AI149 -> 20 | AO149: -0.8
B150: 18:34 | AI150: =IF(ISERROR(AVERAGE(D150:AH150)), "", SUM(D150:AH150)) ->  | AM150: =AI150 -> 
J151: 0.52 | AI151: =SUMPRODUCT(D149:AH149, D151:AH151)/30 -> 0.3466666667 | AN151: =AI151 -> 0.3466666667
A152: Вещание канала 18:00 - 19:00 (2) | B152: 18:00 | C152: 76377.20539 | P152: 15 | AI152: =SUM(D152:AH152) -> 15 | AK152: 15 | AL152: =AI152 -> 15 | AO152: -0.8
B153: 18:36 | AI153: =IF(ISERROR(AVERAGE(D153:AH153)), "", SUM(D153:AH153)) ->  | AM153: =AI153 -> 
P154: 0.31 | AI154: =SUMPRODUCT(D152:AH152, D154:AH154)/30 -> 0.155 | AN154: =AI154 -> 0.155
A155: Вещание канала 18:00 - 19:00 (1) | B155: 18:00 | C155: 76377.20539 | R155: 20 | AI155: =SUM(D155:AH155) -> 20 | AK155: 20 | AL155: =AI155 -> 20 | AO155: -0.8
B156: 18:14 | AI156: =IF(ISERROR(AVERAGE(D156:AH156)), "", SUM(D156:AH156)) ->  | AM156: =AI156 -> 
R157: 0.322 | AI157: =SUMPRODUCT(D155:AH155, D157:AH157)/30 -> 0.2146666667 | AN157: =AI157 -> 0.2146666667
A158: Вещание канала 18:00 - 19:00 (2) | B158: 18:00 | C158: 76377.20539 | V158: 15 | AI158: =SUM(D158:AH158) -> 15 | AK158: 15 | AL158: =AI158 -> 15 | AO158: -0.8
B159: 18:48 | AI159: =IF(ISERROR(AVERAGE(D159:AH159)), "", SUM(D159:AH159)) ->  | AM159: =AI159 -> 
V160: 0.618 | AI160: =SUMPRODUCT(D158:AH158, D160:AH160)/30 -> 0.309 | AN160: =AI160 -> 0.309
A161: Вещание канала 18:00 - 19:00 (1) | B161: 18:00 | C161: 76377.20539 | AA161: 15 | AI161: =SUM(D161:AH161) -> 15 | AK161: 15 | AL161: =AI161 -> 15 | AO161: -0.8
B162: 18:30 | AI162: =IF(ISERROR(AVERAGE(D162:AH162)), "", SUM(D162:AH162)) ->  | AM162: =AI162 -> 
AA163: 0.41 | AI163: =SUMPRODUCT(D161:AH161, D163:AH163)/30 -> 0.205 | AN163: =AI163 -> 0.205
A164: Вещание канала 18:00 - 19:00 (2) | B164: 18:00 | C164: 76377.20539 | AH164: 20 | AI164: =SUM(D164:AH164) -> 20 | AK164: 20 | AL164: =AI164 -> 20 | AO164: -0.8
B165: 18:56 | AI165: =IF(ISERROR(AVERAGE(D165:AH165)), "", SUM(D165:AH165)) ->  | AM165: =AI165 -> 
AH166: 0.297 | AI166: =SUMPRODUCT(D164:AH164, D166:AH166)/30 -> 0.198 | AN166: =AI166 -> 0.198
A167: Вещание канала 19:00 - 20:00 (2) | B167: 19:00 | C167: 76377.20539 | I167: 15 | AI167: =SUM(D167:AH167) -> 15 | AK167: 15 | AL167: =AI167 -> 15 | AO167: -0.8
B168: 19:51 | AI168: =IF(ISERROR(AVERAGE(D168:AH168)), "", SUM(D168:AH168)) ->  | AM168: =AI168 -> 
I169: 0.462 | AI169: =SUMPRODUCT(D167:AH167, D169:AH169)/30 -> 0.231 | AN169: =AI169 -> 0.231
A170: Вещание канала 19:00 - 20:00 (2) | B170: 19:00 | C170: 76377.20539 | R170: 15 | AI170: =SUM(D170:AH170) -> 15 | AK170: 15 | AL170: =AI170 -> 15 | AO170: -0.8
B171: 19:40 | AI171: =IF(ISERROR(AVERAGE(D171:AH171)), "", SUM(D171:AH171)) ->  | AM171: =AI171 -> 
R172: 0.335 | AI172: =SUMPRODUCT(D170:AH170, D172:AH172)/30 -> 0.1675 | AN172: =AI172 -> 0.1675
A173: Вещание канала 19:00 - 20:00 (2) | B173: 19:00 | C173: 76377.20539 | T173: 15 | AI173: =SUM(D173:AH173) -> 15 | AK173: 15 | AL173: =AI173 -> 15 | AO173: -0.8
B174: 19:33 | AI174: =IF(ISERROR(AVERAGE(D174:AH174)), "", SUM(D174:AH174)) ->  | AM174: =AI174 -> 
T175: 0.823 | AI175: =SUMPRODUCT(D173:AH173, D175:AH175)/30 -> 0.4115 | AN175: =AI175 -> 0.4115
A176: Вещание канала 19:00 - 20:00 (1) | B176: 19:00 | C176: 76377.20539 | W176: 20 | AI176: =SUM(D176:AH176) -> 20 | AK176: 20 | AL176: =AI176 -> 20 | AO176: -0.8
B177: 19:01 | AI177: =IF(ISERROR(AVERAGE(D177:AH177)), "", SUM(D177:AH177)) ->  | AM177: =AI177 -> 
W178: 0.471 | AI178: =SUMPRODUCT(D176:AH176, D178:AH178)/30 -> 0.314 | AN178: =AI178 -> 0.314
A179: Вещание канала 19:00 - 20:00 (2) | B179: 19:00 | C179: 76377.20539 | AA179: 20 | AI179: =SUM(D179:AH179) -> 20 | AK179: 20 | AL179: =AI179 -> 20 | AO179: -0.8
B180: 19:48 | AI180: =IF(ISERROR(AVERAGE(D180:AH180)), "", SUM(D180:AH180)) ->  | AM180: =AI180 -> 
AA181: 0.57 | AI181: =SUMPRODUCT(D179:AH179, D181:AH181)/30 -> 0.38 | AN181: =AI181 -> 0.38
A182: Вещание канала 19:00 - 20:00 (1) | B182: 19:00 | C182: 76377.20539 | AD182: 15 | AI182: =SUM(D182:AH182) -> 15 | AK182: 15 | AL182: =AI182 -> 15 | AO182: -0.8
B183: 19:20 | AI183: =IF(ISERROR(AVERAGE(D183:AH183)), "", SUM(D183:AH183)) ->  | AM183: =AI183 -> 
AD184: 0.655 | AI184: =SUMPRODUCT(D182:AH182, D184:AH184)/30 -> 0.3275 | AN184: =AI184 -> 0.3275
A185: Вещание канала 19:00 - 20:00 (1) | B185: 19:00 | C185: 76377.20539 | AG185: 15 | AI185: =SUM(D185:AH185) -> 15 | AK185: 15 | AL185: =AI185 -> 15 | AO185: -0.8
B186: 19:25 | AI186: =IF(ISERROR(AVERAGE(D186:AH186)), "", SUM(D186:AH186)) ->  | AM186: =AI186 -> 
AG187: 0.475 | AI187: =SUMPRODUCT(D185:AH185, D187:AH187)/30 -> 0.2375 | AN187: =AI187 -> 0.2375
A188: Вещание канала 20:00 - 21:00 (1) | B188: 20:00 | C188: 76377.20539 | E188: 20 | AI188: =SUM(D188:AH188) -> 20 | AK188: 20 | AL188: =AI188 -> 20 | AO188: -0.8
B189: 20:01 | AI189: =IF(ISERROR(AVERAGE(D189:AH189)), "", SUM(D189:AH189)) ->  | AM189: =AI189 -> 
E190: 0.473 | AI190: =SUMPRODUCT(D188:AH188, D190:AH190)/30 -> 0.3153333333 | AN190: =AI190 -> 0.3153333333
A191: Вещание канала 20:00 - 21:00 (3) | B191: 20:00 | C191: 76377.20539 | O191: 15 | AI191: =SUM(D191:AH191) -> 15 | AK191: 15 | AL191: =AI191 -> 15 | AO191: -0.8
B192: 20:55 | AI192: =IF(ISERROR(AVERAGE(D192:AH192)), "", SUM(D192:AH192)) ->  | AM192: =AI192 -> 
O193: 0.392 | AI193: =SUMPRODUCT(D191:AH191, D193:AH193)/30 -> 0.196 | AN193: =AI193 -> 0.196
A194: Вещание канала 20:00 - 21:00 (2) | B194: 20:00 | C194: 76377.20539 | X194: 15 | AI194: =SUM(D194:AH194) -> 15 | AK194: 15 | AL194: =AI194 -> 15 | AO194: -0.8
B195: 20:57 | AI195: =IF(ISERROR(AVERAGE(D195:AH195)), "", SUM(D195:AH195)) ->  | AM195: =AI195 -> 
X196: 0.314 | AI196: =SUMPRODUCT(D194:AH194, D196:AH196)/30 -> 0.157 | AN196: =AI196 -> 0.157
A197: Вещание канала 20:00 - 21:00 (1) | B197: 20:00 | C197: 76377.20539 | AF197: 15 | AI197: =SUM(D197:AH197) -> 15 | AK197: 15 | AL197: =AI197 -> 15 | AO197: -0.8
B198: 20:04 | AI198: =IF(ISERROR(AVERAGE(D198:AH198)), "", SUM(D198:AH198)) ->  | AM198: =AI198 -> 
AF199: 0.541 | AI199: =SUMPRODUCT(D197:AH197, D199:AH199)/30 -> 0.2705 | AN199: =AI199 -> 0.2705
A200: Вещание канала 21:00 - 22:00 (1) | B200: 21:00 | C200: 76377.20539 | G200: 20 | AI200: =SUM(D200:AH200) -> 20 | AK200: 20 | AL200: =AI200 -> 20 | AO200: -0.8
B201: 21:02 | AI201: =IF(ISERROR(AVERAGE(D201:AH201)), "", SUM(D201:AH201)) ->  | AM201: =AI201 -> 
G202: 0.506 | AI202: =SUMPRODUCT(D200:AH200, D202:AH202)/30 -> 0.3373333333 | AN202: =AI202 -> 0.3373333333
... 49 more rows

Sheet Prostamol ДК 10 2017 10.17
D1: График размещения
A3: Договор: | B3: Berlin-Chemie 2017 ТК
A4: Название Заказа / Медиаплана: | B4: Prostamol МРК 10/2017 / Prostamol МРК 10/2017
A5: Канал: | B5: Другой канал
B6: Другой канал
A7: Целевая аудитория: | B7: все 18+
A8: Дата выгрузки: | B8: 27.09.2017
A10: Программа/номер блока1) | B10: Время выхода2) | C10: Цена за GRP 30” (без НДС)3) | D10: 1 | E10: 2 | F10: 3 | G10: 4 | H10: 5 | I10: 6 | J10: 7 | K10: 8 | L10: 9 | M10: 10 | N10: 11 | O10: 12 | P10: 13 | Q10: 14 | R10: 15 | S10: 16 | T10: 17 | U10: 18 | V10: 19 | W10: 20 | X10: 21 | Y10: 22 | Z10: 23 | AA10: 24 | AB10: 25 | AC10: 26 | AD10: 27 | AE10: 28 | AF10: 29 | AG10: 30 | AH10: 31 | AI10: Всего (хронометраж/кол-во пунктов рейтингов) | AJ10: Стоимость (без НДС) | AK10: Хр.
A11: Вещание канала 09:00 - 10:00 (1) | B11: 09:00 | C11: 76377.20539 | G11: 20 | AI11: =SUM(D11:AH11) -> 20 | AK11: 20 | AL11: =AI11 -> 20 | AO11: -0.8
B12: 09:33 | AI12: =IF(ISERROR(AVERAGE(D12:AH12)), "", SUM(D12:AH12)) ->  | AM12: =AI12 -> 
G13: 0.247 | AI13: =SUMPRODUCT(D11:AH11, D13:AH13)/30 -> 0.1646666667 | AN13: =AI13 -> 0.1646666667
A14: Вещание канала 09:00 - 10:00 (1) | B14: 09:00 | C14: 76377.20539 | O14: 15 | AI14: =SUM(D14:AH14) -> 15 | AK14: 15 | AL14: =AI14 -> 15 | AO14: -0.8
B15: 09:24 | AI15: =IF(ISERROR(AVERAGE(D15:AH15)), "", SUM(D15:AH15)) ->  | AM15: =AI15 -> 
O16: 0.238 | AI16: =SUMPRODUCT(D14:AH14, D16:AH16)/30 -> 0.119 | AN16: =AI16 -> 0.119
A17: Вещание канала 09:00 - 10:00 (1) | B17: 09:00 | C17: 76377.20539 | V17: 20 | AI17: =SUM(D17:AH17) -> 20 | AK17: 20 | AL17: =AI17 -> 20 | AO17: -0.8
B18: 09:43 | AI18: =IF(ISERROR(AVERAGE(D18:AH18)), "", SUM(D18:AH18)) ->  | AM18: =AI18 -> 
V19: 0.282 | AI19: =SUMPRODUCT(D17:AH17, D19:AH19)/30 -> 0.188 | AN19: =AI19 -> 0.188
A20: Вещание канала 09:00 - 10:00 (1) | B20: 09:00 | C20: 76377.20539 | Z20: 15 | AI20: =SUM(D20:AH20) -> 15 | AK20: 15 | AL20: =AI20 -> 15 | AO20: -0.8
B21: 09:23 | AI21: =IF(ISERROR(AVERAGE(D21:AH21)), "", SUM(D21:AH21)) ->  | AM21: =AI21 -> 
Z22: 0.375 | AI22: =SUMPRODUCT(D20:AH20, D22:AH22)/30 -> 0.1875 | AN22: =AI22 -> 0.1875
A23: Вещание канала 21:00 - 22:00 (1) | B23: 21:00 | C23: 76377.20539 | AB23: 20 | AI23: =SUM(D23:AH23) -> 20 | AK23: 20 | AL23: =AI23 -> 20 | AO23: -0.8
B24: 21:04 | AI24: =IF(ISERROR(AVERAGE(D24:AH24)), "", SUM(D24:AH24)) ->  | AM24: =AI24 -> 
AB25: 0.517 | AI25: =SUMPRODUCT(D23:AH23, D25:AH25)/30 -> 0.3446666667 | AN25: =AI25 -> 0.3446666667
A26: Вещание канала 22:00 - 23:00 (2) | B26: 22:00 | C26: 76377.20539 | H26: 20 | AI26: =SUM(D26:AH26) -> 20 | AK26: 20 | AL26: =AI26 -> 20 | AO26: -0.8
B27: 22:37 | AI27: =IF(ISERROR(AVERAGE(D27:AH27)), "", SUM(D27:AH27)) ->  | AM27: =AI27 -> 
H28: 0.583 | AI28: =SUMPRODUCT(D26:AH26, D28:AH28)/30 -> 0.3886666667 | AN28: =AI28 -> 0.3886666667
A29: Вещание канала 22:00 - 23:00 (1) | B29: 22:00 | C29: 76377.20539 | J29: 15 | AI29: =SUM(D29:AH29) -> 15 | AK29: 15 | AL29: =AI29 -> 15 | AO29: -0.8
B30: 22:01 | AI30: =IF(ISERROR(AVERAGE(D30:AH30)), "", SUM(D30:AH30)) ->  | AM30: =AI30 -> 
J31: 0.731 | AI31: =SUMPRODUCT(D29:AH29, D31:AH31)/30 -> 0.3655 | AN31: =AI31 -> 0.3655
A32: Вещание канала 22:00 - 23:00 (2) | B32: 22:00 | C32: 76377.20539 | L32: 15 | AI32: =SUM(D32:AH32) -> 15 | AK32: 15 | AL32: =AI32 -> 15 | AO32: -0.8
B33: 22:57 | AI33: =IF(ISERROR(AVERAGE(D33:AH33)), "", SUM(D33:AH33)) ->  | AM33: =AI33 -> 
L34: 0.6 | AI34: =SUMPRODUCT(D32:AH32, D34:AH34)/30 -> 0.3 | AN34: =AI34 -> 0.3
A35: Вещание канала 22:00 - 23:00 (2) | B35: 22:00 | C35: 76377.20539 | Z35: 15 | AI35: =SUM(D35:AH35) -> 15 | AK35: 15 | AL35: =AI35 -> 15 | AO35: -0.8
B36: 22:48 | AI36: =IF(ISERROR(AVERAGE(D36:AH36)), "", SUM(D36:AH36)) ->  | AM36: =AI36 -> 
Z37: 0.602 | AI37: =SUMPRODUCT(D35:AH35, D37:AH37)/30 -> 0.301 | AN37: =AI37 -> 0.301
A38: Вещание канала 22:00 - 23:00 (1) | B38: 22:00 | C38: 76377.20539 | AC38: 15 | AI38: =SUM(D38:AH38) -> 15 | AK38: 15 | AL38: =AI38 -> 15 | AO38: -0.8
B39: 22:05 | AI39: =IF(ISERROR(AVERAGE(D39:AH39)), "", SUM(D39:AH39)) ->  | AM39: =AI39 -> 
AC40: 0.772 | AI40: =SUMPRODUCT(D38:AH38, D40:AH40)/30 -> 0.386 | AN40: =AI40 -> 0.386
A41: Вещание канала 22:00 - 23:00 (2) | B41: 22:00 | C41: 76377.20539 | AE41: 15 | AI41: =SUM(D41:AH41) -> 15 | AK41: 15 | AL41: =AI41 -> 15 | AO41: -0.8
B42: 22:44 | AI42: =IF(ISERROR(AVERAGE(D42:AH42)), "", SUM(D42:AH42)) ->  | AM42: =AI42 -> 
AE43: 0.532 | AI43: =SUMPRODUCT(D41:AH41, D43:AH43)/30 -> 0.266 | AN43: =AI43 -> 0.266
A45: Общий хронометраж рекламной кампании: | B45: =SUM($AL11:$AL43) -> 185
A46: Общий хронометраж по позиционированным спотам: | B46: =SUM($AM11:$AM43) -> 0
A47: Объем услуг (в накопленных пунктах рейтингов): | B47: =SUM($AN11:$AN43) -> 3.011
A49: Сумма без НДС: | B49: =SUM($AJ11:$AJ43) -> 0
A50: Сумма с НДС (18%): | B50: =B49*1.18 -> 0
A53: 1) Наименование Программы. В скобках указан порядковый номер блока, выходящего в данной Программе
A54: 2) Планируемое время выхода Программы. Нижняя строка в графе обозначает планируемое время выхода блока (мин).
A55: 3) Цена за пункт рейтинга в валюте договора
J57: Менеджер клиента ____________________
A59: Менеджер СМИ ____________________

Sheet Prostamol ТК 10 2017 10.17 (2)
D1: График размещения
A3: Договор: | B3: Berlin-Chemie 2017 ТК
A4: Название Заказа / Медиаплана: | B4: Prostamol МРК 10/2017 / Prostamol МРК 10/2017
A5: Канал: | B5: Третий канал
B6: Третий канал
A7: Целевая аудитория: | B7: все 10-44
A8: Дата выгрузки: | B8: 27.09.2017
A10: Программа/номер блока1) | B10: Время выхода2) | C10: Цена за GRP 30” (без НДС)3) | D10: 1 | E10: 2 | F10: 3 | G10: 4 | H10: 5 | I10: 6 | J10: 7 | K10: 8 | L10: 9 | M10: 10 | N10: 11 | O10: 12 | P10: 13 | Q10: 14 | R10: 15 | S10: 16 | T10: 17 | U10: 18 | V10: 19 | W10: 20 | X10: 21 | Y10: 22 | Z10: 23 | AA10: 24 | AB10: 25 | AC10: 26 | AD10: 27 | AE10: 28 | AF10: 29 | AG10: 30 | AH10: 31 | AI10: Всего (хронометраж/кол-во пунктов рейтингов) | AJ10: Стоимость (без НДС) | AK10: Хр.
A11: Вещание канала 09:00 - 10:00 (1) | B11: 09:00 | C11: 76377.20539 | G11: 20 | AI11: =SUM(D11:AH11) -> 20 | AK11: 20 | AL11: =AI11 -> 20 | AO11: -0.8
B12: 09:33 | AI12: =IF(ISERROR(AVERAGE(D12:AH12)), "", SUM(D12:AH12)) ->  | AM12: =AI12 -> 
G13: 0.247 | AI13: =SUMPRODUCT(D11:AH11, D13:AH13)/30 -> 0.1646666667 | AN13: =AI13 -> 0.1646666667
A14: Вещание канала 09:00 - 10:00 (1) | B14: 09:00 | C14: 76377.20539 | O14: 15 | AI14: =SUM(D14:AH14) -> 15 | AK14: 15 | AL14: =AI14 -> 15 | AO14: -0.8
B15: 09:24 | AI15: =IF(ISERROR(AVERAGE(D15:AH15)), "", SUM(D15:AH15)) ->  | AM15: =AI15 -> 
O16: 0.238 | AI16: =SUMPRODUCT(D14:AH14, D16:AH16)/30 -> 0.119 | AN16: =AI16 -> 0.119
A17: Вещание канала 09:00 - 10:00 (1) | B17: 09:00 | C17: 76377.20539 | V17: 20 | AI17: =SUM(D17:AH17) -> 20 | AK17: 20 | AL17: =AI17 -> 20 | AO17: -0.8
B18: 09:43 | AI18: =IF(ISERROR(AVERAGE(D18:AH18)), "", SUM(D18:AH18)) ->  | AM18: =AI18 -> 
V19: 0.282 | AI19: =SUMPRODUCT(D17:AH17, D19:AH19)/30 -> 0.188 | AN19: =AI19 -> 0.188
A20: Вещание канала 09:00 - 10:00 (1) | B20: 09:00 | C20: 76377.20539 | Z20: 15 | AI20: =SUM(D20:AH20) -> 15 | AK20: 15 | AL20: =AI20 -> 15 | AO20: -0.8
B21: 09:23 | AI21: =IF(ISERROR(AVERAGE(D21:AH21)), "", SUM(D21:AH21)) ->  | AM21: =AI21 -> 
Z22: 0.375 | AI22: =SUMPRODUCT(D20:AH20, D22:AH22)/30 -> 0.1875 | AN22: =AI22 -> 0.1875
A23: Вещание канала 22:00 - 23:00 (1) | B23: 22:00 | C23: 76377.20539 | I23: 15 | AC23: 15 | AI23: =SUM(D23:AH23) -> 30 | AK23: 15 | AL23: =AI23 -> 30 | AO23: -0.8
B24: 22:05 | AI24: =IF(ISERROR(AVERAGE(D24:AH24)), "", SUM(D24:AH24)) ->  | AM24: =AI24 -> 
I25: 0.238 | AC25: 0.772 | AI25: =SUMPRODUCT(D23:AH23, D25:AH25)/30 -> 0.505 | AN25: =AI25 -> 0.505
A26: Вещание канала 22:00 - 23:00 (2) | B26: 22:00 | C26: 76377.20539 | H26: 15 | AE26: 15 | AI26: =SUM(D26:AH26) -> 30 | AK26: 15 | AL26: =AI26 -> 30 | AO26: -0.8
B27: 22:44 | AI27: =IF(ISERROR(AVERAGE(D27:AH27)), "", SUM(D27:AH27)) ->  | AM27: =AI27 -> 
H28: 0.238 | AE28: 0.532 | AI28: =SUMPRODUCT(D26:AH26, D28:AH28)/30 -> 0.385 | AN28: =AI28 -> 0.385
A30: Общий хронометраж рекламной кампании: | B30: =SUM($AL11:$AL28) -> 130
A31: Общий хронометраж по позиционированным спотам: | B31: =SUM($AM11:$AM28) -> 0
A32: Объем услуг (в накопленных пунктах рейтингов): | B32: =SUM($AN11:$AN28) -> 1.549166667
A34: Сумма без НДС: | B34: =SUM($AJ11:$AJ28) -> 0
A35: Сумма с НДС (18%): | B35: =B34*1.18 -> 0
A38: 1) Наименование Программы. В скобках указан порядковый номер блока, выходящего в данной Программе
A39: 2) Планируемое время выхода Программы. Нижняя строка в графе обозначает планируемое время выхода блока (мин).
A40: 3) Цена за пункт рейтинга в валюте договора
J42: Менеджер клиента ____________________
A44: Менеджер СМИ ____________________
